{"text_format":"1","workbook":"xlsx","n_sheets":1,"sheets":["PRICE BID FORMAT"],"not_rendered":{"charts":0,"images":0,"macros":1,"external_links":0,"defined_names":0,"comments":0,"pivot_tables":0},"unopened":[],"bounds":{"document_bytes":16777216,"sheet_cells":100000,"rows_first":2000,"rows_last":500,"rows_between":2000,"halvings":0,"cell_chars":16384,"cell_head_chars":4096},"cells_cut":0,"cells_raw":0,"read":"whole","date_system":"1900"}

{"sheet":"PRICE BID FORMAT","index":0,"n_rows":47,"n_cols":6,"rows_kept":47,"cut":false,"hidden":false,"merged":[[46,2,46,5],[44,1,44,5],[23,5,29,5],[37,1,37,5],[38,1,38,5],[45,3,45,5],[23,1,29,1],[23,2,29,2],[23,3,29,3],[23,4,29,4],[40,0,41,5],[0,0,0,5],[1,0,1,5],[2,0,2,5],[3,0,3,5],[4,1,4,5]]}
["Bharat Heavy Electricals Limited\nPower Sector - Southern Region"]
["Project - 5x800 MW Yadadri TPS"]
["Price bid for Enquiry - YTPS:SCT: 202207-118"]
["Rate Contract of Construction power network modification works at 5X800 MW YTPS"]
["Bidder's Name"]
["A)Item Description","UNIT","Qty","Rate (Rs)","Amount (Rs)","MF"]
["Dismantling of 3 phase over head lines comprising of aluminium over head conductor cross arms, insulators etc. as required."]
["a) Cross arms- 40 nos","Kg",{"$f":"40*10","v":400},{"$f":"E8/C8","v":0},{"$f":"$B$38*F8","v":0},2.5708545991447118E-2]
["b) Disc Insulators-36 nos","Kg",{"$f":"36*1","v":36},{"$f":"E9/C9","v":0},0,2.3137691392302404E-3]
["C) Pin insulators-84 nos","Kg",{"$f":"84*1","v":84},0,0,5.3987946582038943E-3]
["d) ACSR raccoon conductor- 7.2 KM (2.4 Km of 3ph line)","Kg",{"$f":"7200*0.32","v":2304},0,0,0.14808122491073539]
["Dismantling of PSCC poles embedded in\ncement concrete foundation as required.","Nos",40,0,0,7.8260253079775285E-2]
["Total A",null,null,null,0,0.25976258777939193]
["B) Erection of 11KV OH line","UNIT","Qty","Rate (Rs)","Amount (Rs)"]
["a) Erection of 9.1 M long pre-stressed cement concrete poles (PSCC).The erection includes excavation of earth of size 0.8x08x1.5M depth grouting with concrete of ratio 1:4:8 for size of 0.8x0.8x1.5M depth including supply of cement, sand, metal etc for the foundation and Coping of poles by 1 feet hight","Nos",40,{"$f":"E15/C15","v":0},{"$f":"$B$38*F15","v":0},0.11773710672020547]
["b) Erection of 11KV G.I stay sets(7/3.15mm) with guy, bow, stay rod, wire etc.","Nos",12,{"$f":"E16/C16","v":0},0,4.808301492462844E-3]
["c) Erection of 11KV V Cross arms/Straight Arm with suitable back clamps including Alu. Painting as per IE specification","Nos",40,0,0,1.1247488871258114E-2]
["d) Erection of 11KV top fittings (I Clamp) with suitable back clamps including Alu. Painting   as per IE specification.","Nos",40,0,0,7.7527334005457714E-3]
["e) Erection of 11KV disc insulator with fixing & conductor and holding clamp as per ISS\n3188/1965 &IEC 309/1969/Latest.( 3nos per set)","sets",12,0,0,1.2255745909360181E-2]
["f) Erection of 11KV pin insulator with pins as per ISS 2544/1963 AMD 125&IEC\n168/1969 Latest.( 3nos per set)","sets",28,0,0,2.6993973291019472E-3]
["g) Stringing of 7/4.09 ACSR Raccoon conductors as per IS 398/1961. (To meet 3 lines of 2.4KM).","KMs",7.2,0,0,5.2493637346286079E-2]
["Total B",null,null,null,0,0.2089944110692204]
["C) Dismantling & erection of of 500KVA Skid mounted sub station (11Kv/415V)","UNIT","Qty","Rate (Rs)","Amount (Rs)"]
["a) Dismantling, shifting, erection, alignment and earthing of 500kVA Skid Mounted sub station","SET",5,{"$f":"E24/C24","v":0},{"$f":"E31","v":0}]
["b) Supply and Erection of 3M long 50mm dia 3.6 mm thick medium class GI funnal type earth electrode with filling of bentonite earthing powder, charcoal, salt as per standard, four side brick work chamber with cement plastering ,white washing and removable type RCC/ cast iron cover plate.  scope includes supply of electrode pipe, required bentonite erathing powder, charcoal, salt, cement , brick, sand, RCC/cast iron cover plate-6Nos"]
["c) Erection of 50 x 6 mm GI earth flat for SMSS body earthing & neutral earthing"]
["d) Dismantling & Erection of G.I lighting poles (6m long)-02nos and installation of lights-02nos and associated connections"]
["e) Dismantling & Erection of G.I  poles (6m long) and installation of vertical air terminal rods-02nos for lightning protection"]
["f) Erection of 25 x 5 mm GI earth flat for earthing of vertical air terminal rods for lightning protection"]
["g) Removal of undergroung HT cable shifting, laying & termination of HT power cable(30 mtr) to SMSS"]
["Total C",null,null,null,{"$f":"$B$38*F31","v":0},0.34646282683786156]
["D) Dismantling & erection of 30mtr High mast light","UNIT","Qty","Rate (Rs)","Amount (Rs)"]
["a) Dismantling of existing 30 Mtrs high mast light and re-erection in new identified aerea","Nos",2,{"$f":"E33/C33","v":0},{"$f":"E34","v":0}]
["Total D",null,null,null,{"$f":"$B$38*F34","v":0},0.10444096809025391]
["E) Dismantling & erection of 20.mtr High mast light","UNIT","Qty","Rate (Rs)","Amount (Rs)"]
["a) Dismantling of existing 20 Mtrs high mast light and re-erection in new identified aerea","Nos",2,{"$f":"E36/C36","v":0},{"$f":"E37","v":0}]
["Total E",null,null,null,{"$f":"B38*F37","v":0},8.0339206223272244E-2]
["Total Price "]
["Total Price (In Words)",{"$f":"NUM_TO_IND_RUPEE_WORD(B38)","v":"Rupees Zero  and Paise Zero Only "}]
[]
["Note:1.Evaluation shall be done on Overall L1 basis, Bidders are requested to quote competitive price in blue cell."]
[]
[" GST - EXTRA ----"]
[]
[null,"SIGNATURE & SEAL OF AUTHORISED PERSON"]
[]
[null,null,"NAME: "]